[Event "CCT Chessable Masters Place D-I 2024"]
[Site "Online"]
[Date "2024.02.01"]
[Round "1"]
[White "Svidler, Peter"]
[Black "Sam_ChessMood"]
[Result "1/2-1/2"]
[ECO "B72"]
[WhiteElo "2689"]
[BlackElo "2653"]
[Annotator "ChessBase"]
[PlyCount "170"]
[EventDate "2024.01.12"]
[EventType "k.o."]
[EventCountry "NET"]
[SourceTitle "playchess.com"]
[Source "ChessBase"]
[SourceQuality "1"]
[TimeControl "600+2"]

1. e4 {[%emt 0:00:04]} c5 {[%emt 0:00:05]} 2. Nf3 {[%emt 0:00:01]} d6 {[%emt 0:00:02]} 3. d4 {[%emt 0:00:02]} cxd4 {[%emt 0:00:01]} 4. Nxd4 {[%emt 0:00:01]} Nf6 {[%emt 0:00:00]} 5. Nc3 {[%emt 0:00:04]} a6 {[%emt 0:00:02]} 6. Bd3 {[%emt 0:00:08]} g6 {[%emt 0:00:05]} 7. f3 {[%emt 0:00:05]} Bg7 {[%emt 0:00:15]} 8. Be3 {[%emt 0:00:01]} Nbd7 {[%emt 0:00:07]} 9. Qd2 {[%emt 0:00:06]} b5 {[%emt 0:00:06]} 10. a4 {[%emt 0:00:48]} b4 {[%emt 0:00:03]} 11. Na2 {[%emt 0:00:01]} d5 {[%emt 0:00:10]} 12. Nxb4 {[%emt 0:00:35]} dxe4 {[%emt 0:00:03]} 13. fxe4 {[%emt 0:00:01]} Bb7 {[%emt 0:01:24]} 14. O-O-O {[%emt 0:00:02]} Qc7 {[%emt 0:02:39]} 15. Nb3 {[%emt 0:01:36]} O-O {[%emt 0:01:15]} 16. Bd4 {[%emt 0:00:25]} Rfd8 {[%emt 0:00:36]} 17. Rhe1 {[%emt 0:00:52]} Ne5 {[%emt 0:00:38]} 18. Kb1 {[%emt 0:00:26]} a5 {[%emt 0:00:27]} 19. Qc3 {[%emt 0:01:36]} Qxc3 {[%emt 0:00:29]} 20. Bxc3 {[%emt 0:00:00]} axb4 {[%emt 0:01:05]} 21. Bxe5 {[%emt 0:00:02]} Rxa4 {[%emt 0:00:01]} 22. Nc5 {[%emt 0:00:16]} Ra7 {[%emt 0:00:04]} 23. Nxb7 {[%emt 0:00:50]} Rxb7 {[%emt 0:00:02]} 24. Ba6 {[%emt 0:00:18]} Rbd7 {[%emt 0:00:03]} 25. Rxd7 {[%emt 0:00:21]} Rxd7 {[%emt 0:00:00]} 26. Bf4 {[%emt 0:00:21]} Nh5 {[%emt 0:00:43]} 27. Be3 {[%emt 0:00:06]} Be5 {[%emt 0:00:09]} 28. g3 {[%emt 0:00:03]} Nf6 {[%emt 0:00:13]} 29. Bc5 {[%emt 0:00:06]} Bd6 {[%emt 0:00:02]} 30. Bxd6 {[%emt 0:00:37]} Rxd6 {[%emt 0:00:01]} 31. Bc4 {[%emt 0:00:01]} Rd4 {[%emt 0:00:04]} 32. Bd3 {[%emt 0:00:04]} Ng4 {[%emt 0:00:01]} 33. Ka2 {[%emt 0:00:06]} Ne5 {[%emt 0:00:02]} 34. Re3 {[%emt 0:00:05]} Nd7 {[%emt 0:00:06]} 35. c3 {[%emt 0:00:13]} bxc3 {[%emt 0:00:00]} 36. bxc3 {[%emt 0:00:01]} Ra4+ {[%emt 0:00:01]} 37. Kb2 {[%emt 0:00:00]} Nc5 {[%emt 0:00:01]} 38. Bc2 {[%emt 0:00:04]} Ra7 {[%emt 0:00:01]} 39. e5 {[%emt 0:00:02]} Kf8 {[%emt 0:00:03]} 40. c4 {[%emt 0:00:04]} e6 {[%emt 0:00:02]} 41. g4 {[%emt 0:00:06]} Ke7 {[%emt 0:00:01]} 42. Rh3 {[%emt 0:00:02]} Nd7 {[%emt 0:00:01]} 43. Rxh7 {[%emt 0:00:05]} Nxe5 {[%emt 0:00:00]} 44. Kc3 {[%emt 0:00:00]} Nxg4 {[%emt 0:00:03]} 45. Bxg6 {[%emt 0:00:02]} Ne5 {[%emt 0:00:01]} 46. Bc2 {[%emt 0:00:02]} Rc7 {[%emt 0:00:03]} 47. Bb3 {[%emt 0:00:03]} Kf6 {[%emt 0:00:03]} 48. h4 {[%emt 0:00:01]} Rc8 {[%emt 0:00:04]} 49. Rh5 {[%emt 0:00:03]} Nd7 {[%emt 0:00:04]} 50. Kd4 {[%emt 0:00:01]} e5+ {[%emt 0:00:02]} 51. Ke3 {[%emt 0:00:06]} Nc5 {[%emt 0:00:01]} 52. Bc2 {[%emt 0:00:01]} Ra8 {[%emt 0:00:04]} 53. Rh6+ {[%emt 0:00:05]} Kg7 {[%emt 0:00:05]} 54. Rc6 {[%emt 0:00:01]} Ra3+ {[%emt 0:00:00]} 55. Kd2 {[%emt 0:00:02]} Ne6 {[%emt 0:00:01]} 56. h5 {[%emt 0:00:06]} Ra2 {[%emt 0:00:04]} 57. Rd6 {[%emt 0:00:06]} Kh6 {[%emt 0:00:02]} 58. c5 {[%emt 0:00:05]} Kxh5 {[%emt 0:00:02]} 59. c6 {[%emt 0:00:01]} Ra7 {[%emt 0:00:01]} 60. Ke3 {[%emt 0:00:05]} Nd4 {[%emt 0:00:03]} 61. Be4 {[%emt 0:00:13]} Kg5 {[%emt 0:00:04]} 62. Kd3 {[%emt 0:00:04]} f5 {[%emt 0:00:02]} 63. Bd5 {[%emt 0:00:01]} Kf4 {[%emt 0:00:01]} 64. Rh6 {[%emt 0:00:03]} Rc7 {[%emt 0:00:02]} 65. Kc4 {[%emt 0:00:01]} Nxc6 {[%emt 0:00:03]} 66. Bxc6 {[%emt 0:00:02]} e4 {[%emt 0:00:01]} 67. Kd4 {[%emt 0:00:01]} Rg7 {[%emt 0:00:02]} 68. Rf6 {[%emt 0:00:01]} Kg5 {[%emt 0:00:02]} 69. Rf8 {[%emt 0:00:01]} Kf4 {[%emt 0:00:01]} 70. Bxe4 {[%emt 0:00:02]} Rd7+ {[%emt 0:00:02]} 71. Bd5 {[%emt 0:00:01]} Re7 {[%emt 0:00:00]} 72. Bc6 {[%emt 0:00:02]} Re6 {[%emt 0:00:02]} 73. Bb5 {[%emt 0:00:02]} Rd6+ {[%emt 0:00:01]} 74. Kc5 {[%emt 0:00:01]} Rd2 {[%emt 0:00:01]} 75. Bc6 {[%emt 0:00:01]} Ke5 {[%emt 0:00:01]} 76. Re8+ {[%emt 0:00:01]} Kf4 {[%emt 0:00:01]} 77. Bd5 {[%emt 0:00:01]} Kg3 {[%emt 0:00:02]} 78. Re3+ {[%emt 0:00:01]} Kg4 {[%emt 0:00:02]} 79. Kd6 {[%emt 0:00:01]} f4 {[%emt 0:00:01]} 80. Re8 {[%emt 0:00:02]} f3 {[%emt 0:00:04]} 81. Rg8+ {[%emt 0:00:01]} Kh3 {[%emt 0:00:01]} 82. Rf8 {[%emt 0:00:01]} Rxd5+ {[%emt 0:00:09]} 83. Kxd5 {[%emt 0:00:01]} Kg2 {[%emt 0:00:00]} 84. Ke4 {[%emt 0:00:01]} f2 {[%emt 0:00:01]} 85. Rxf2+ {[%emt 0:00:01]} Kxf2 {[%emt 0:00:01]} 1/2-1/2

[Event "CCT Chessable Masters Place D-I 2024"]
[Site "Online"]
[Date "2024.02.01"]
[Round "1"]
[White "tptagain"]
[Black "Mamedov, Rauf"]
[Result "1/2-1/2"]
[ECO "B27"]
[WhiteElo "2667"]
[BlackElo "2651"]
[Annotator "ChessBase"]
[PlyCount "104"]
[EventDate "2024.01.12"]
[EventType "k.o."]
[EventCountry "NET"]
[SourceTitle "playchess.com"]
[Source "ChessBase"]
[SourceQuality "1"]
[TimeControl "600+2"]

1. e4 {[%emt 0:00:04]} c5 {[%emt 0:00:13]} 2. Nf3 {[%emt 0:00:02]} g6 {[%emt 0:00:01]} 3. c3 {[%emt 0:00:10]} d5 {[%emt 0:00:02]} 4. e5 {[%emt 0:00:34]} a6 {[%emt 0:00:01]} 5. d4 {[%emt 0:00:10]} Bg7 {[%emt 0:00:02]} 6. Be2 {[%emt 0:00:10]} Nc6 {[%emt 0:00:04]} 7. O-O {[%emt 0:00:06]} f6 {[%emt 0:00:19]} 8. exf6 {[%emt 0:00:03]} Nxf6 {[%emt 0:00:02]} 9. dxc5 {[%emt 0:00:12]} O-O {[%emt 0:00:06]} 10. Bg5 {[%emt 0:00:49]} e5 {[%emt 0:01:42]} 11. Nbd2 {[%emt 0:00:42]} Bf5 {[%emt 0:00:19]} 12. Re1 {[%emt 0:00:54]} Kh8 {[%emt 0:00:44]} 13. h3 {[%emt 0:01:02]} Qc7 {[%emt 0:00:58]} 14. Qb3 {[%emt 0:00:50]} Rae8 {[%emt 0:00:47]} 15. Rad1 {[%emt 0:00:25]} Qf7 {[%emt 0:00:59]} 16. Be3 {[%emt 0:00:30]} Qc7 {[%emt 0:00:17]} 17. Qa4 {[%emt 0:00:09]} e4 {[%emt 0:00:52]} 18. Nd4 {[%emt 0:00:01]} Bd7 {[%emt 0:00:01]} 19. Nxc6 {[%emt 0:00:07]} Bxc6 {[%emt 0:00:02]} 20. Qb4 {[%emt 0:00:12]} Nd7 {[%emt 0:00:30]} 21. Nb3 {[%emt 0:00:32]} Ne5 {[%emt 0:00:01]} 22. Na5 {[%emt 0:00:26]} Qf7 {[%emt 0:00:03]} 23. c4 {[%emt 0:00:33]} d4 {[%emt 0:00:11]} 24. Bxd4 {[%emt 0:00:02]} e3 {[%emt 0:00:04]} 25. Bxe3 {[%emt 0:00:07]} Nd3 {[%emt 0:00:20]} 26. Qd2 {[%emt 0:00:37]} Nxf2 {[%emt 0:00:54]} 27. Rf1 {[%emt 0:00:01]} Rxe3 {[%emt 0:00:01]} 28. Nxc6 {[%emt 0:00:47]} bxc6 {[%emt 0:00:57]} 29. Qxe3 {[%emt 0:00:03]} Nxd1 {[%emt 0:00:01]} 30. Rxd1 {[%emt 0:00:02]} Bxb2 {[%emt 0:00:06]} 31. Rf1 {[%emt 0:00:16]} Qg7 {[%emt 0:00:02]} 32. Rxf8+ {[%emt 0:00:02]} Qxf8 {[%emt 0:00:01]} 33. Bf3 {[%emt 0:00:01]} Qf6 {[%emt 0:00:01]} 34. Qe8+ {[%emt 0:00:10]} Kg7 {[%emt 0:00:01]} 35. Qxc6 {[%emt 0:00:06]} Qxc6 {[%emt 0:00:08]} 36. Bxc6 {[%emt 0:00:01]} Bd4+ {[%emt 0:00:00]} 37. Kf1 {[%emt 0:00:01]} Bxc5 {[%emt 0:00:00]} 38. Ke2 {[%emt 0:00:01]} Kf6 {[%emt 0:00:01]} 39. Kd3 {[%emt 0:00:05]} Ke5 {[%emt 0:00:01]} 40. Bd5 {[%emt 0:00:03]} g5 {[%emt 0:00:02]} 41. Bf3 {[%emt 0:00:03]} a5 {[%emt 0:00:02]} 42. Kc3 {[%emt 0:00:01]} a4 {[%emt 0:00:04]} 43. Bc6 {[%emt 0:00:02]} a3 {[%emt 0:00:00]} 44. Bf3 {[%emt 0:00:01]} h6 {[%emt 0:00:01]} 45. Kd3 {[%emt 0:00:02]} Kf4 {[%emt 0:00:02]} 46. Bd5 {[%emt 0:00:05]} Ke5 {[%emt 0:00:01]} 47. Kc3 {[%emt 0:00:02]} h5 {[%emt 0:00:05]} 48. Bf3 {[%emt 0:00:02]} h4 {[%emt 0:00:02]} 49. Bd5 {[%emt 0:00:04]} Kd6 {[%emt 0:00:03]} 50. Bf3 {[%emt 0:00:02]} Ke5 {[%emt 0:00:01]} 51. Bd5 {[%emt 0:00:01]} Kd6 {[%emt 0:00:01]} 52. Bf3 {[%emt 0:00:00]} Ke5 {[%emt 0:00:00]} 1/2-1/2

[Event "CCT Chessable Masters Place D-I 2024"]
[Site "Online"]
[Date "2024.02.01"]
[Round "1"]
[White "Mamedov, Rauf"]
[Black "tptagain"]
[Result "1-0"]
[ECO "B10"]
[WhiteElo "2651"]
[BlackElo "2668"]
[Annotator "ChessBase"]
[PlyCount "49"]
[EventDate "2024.01.12"]
[EventType "k.o."]
[EventCountry "NET"]
[SourceTitle "playchess.com"]
[Source "ChessBase"]
[SourceQuality "1"]
[TimeControl "600+2"]

1. e4 {[%emt 0:00:03]} c6 {[%emt 0:00:04]} 2. Nf3 {[%emt 0:00:05]} d5 {[%emt 0:00:01]} 3. e5 {[%emt 0:00:00]} Bg4 {[%emt 0:00:05]} 4. Be2 {[%emt 0:00:02]} e6 {[%emt 0:00:02]} 5. O-O {[%emt 0:00:07]} Ne7 {[%emt 0:00:02]} 6. d4 {[%emt 0:00:03]} c5 {[%emt 0:00:04]} 7. c3 {[%emt 0:00:02]} Nbc6 {[%emt 0:00:21]} 8. Nbd2 {[%emt 0:00:01]} cxd4 {[%emt 0:00:18]} 9. cxd4 {[%emt 0:00:03]} Nf5 {[%emt 0:01:17]} 10. h3 {[%emt 0:00:17]} Bxf3 {[%emt 0:00:01]} 11. Nxf3 {[%emt 0:00:00]} Qb6 {[%emt 0:00:02]} 12. Kh1 {[%emt 0:02:26]} Ncxd4 {[%emt 0:03:38]} 13. Nxd4 {[%emt 0:00:15]} Qxd4 {[%emt 0:00:01]} 14. Qb3 {[%emt 0:01:14]} Qb4 {[%emt 0:00:11]} 15. Bb5+ {[%emt 0:00:16]} Kd8 {[%emt 0:00:03]} 16. Bg5+ {[%emt 0:00:01]} Kc7 {[%emt 0:00:31]} 17. Qc2+ {[%emt 0:01:10]} Kb6 {[%emt 0:01:25]} 18. Bd3 {[%emt 0:00:03]} Nd4 {[%emt 0:00:03]} 19. Qd1 {[%emt 0:00:09]} Kc7 {[%emt 0:00:42]} 20. a3 {[%emt 0:00:16]} Qxb2 {[%emt 0:00:23]} 21. Qg4 {[%emt 0:01:23]} Nc6 {[%emt 0:00:19]} 22. Rfc1 {[%emt 0:00:04]} Qb3 {[%emt 0:00:25]} 23. Qf3 {[%emt 0:00:09]} Bxa3 {[%emt 0:00:29]} 24. Rab1 {[%emt 0:00:22]} Bb2 {[%emt 0:00:06]} 25. Rc2 {[%emt 0:00:11]} 1-0

[Event "CCT Chessable Masters Place D-I 2024"]
[Site "Online"]
[Date "2024.02.01"]
[Round "1"]
[White "Sam_ChessMood"]
[Black "Svidler, Peter"]
[Result "1-0"]
[ECO "C90"]
[WhiteElo "2644"]
[BlackElo "2689"]
[Annotator "ChessBase"]
[PlyCount "83"]
[EventDate "2024.01.12"]
[EventType "k.o."]
[EventCountry "NET"]
[SourceTitle "playchess.com"]
[Source "ChessBase"]
[SourceQuality "1"]
[TimeControl "600+2"]

1. e4 {[%emt 0:00:05]} e5 {[%emt 0:00:10]} 2. Nf3 {[%emt 0:00:02]} Nc6 {[%emt 0:00:01]} 3. Bb5 {[%emt 0:00:02]} a6 {[%emt 0:00:00]} 4. Ba4 {[%emt 0:00:01]} Nf6 {[%emt 0:00:02]} 5. O-O {[%emt 0:00:01]} Be7 {[%emt 0:00:01]} 6. d3 {[%emt 0:00:07]} b5 {[%emt 0:00:02]} 7. Bb3 {[%emt 0:00:01]} d6 {[%emt 0:00:01]} 8. c3 {[%emt 0:00:14]} O-O {[%emt 0:00:02]} 9. h3 {[%emt 0:00:02]} Re8 {[%emt 0:00:51]} 10. Re1 {[%emt 0:00:13]} h6 {[%emt 0:00:07]} 11. Nbd2 {[%emt 0:00:10]} Na5 {[%emt 0:00:05]} 12. Bc2 {[%emt 0:00:03]} c5 {[%emt 0:00:00]} 13. Nf1 {[%emt 0:00:37]} Nc6 {[%emt 0:00:11]} 14. Ng3 {[%emt 0:00:18]} Bf8 {[%emt 0:00:08]} 15. d4 {[%emt 0:00:43]} cxd4 {[%emt 0:00:21]} 16. cxd4 {[%emt 0:00:02]} exd4 {[%emt 0:00:15]} 17. Nxd4 {[%emt 0:00:04]} Nxd4 {[%emt 0:00:01]} 18. Qxd4 {[%emt 0:00:00]} Bb7 {[%emt 0:00:32]} 19. Bf4 {[%emt 0:01:27]} Rc8 {[%emt 0:00:03]} 20. Bb3 {[%emt 0:00:27]} d5 {[%emt 0:02:27]} 21. e5 {[%emt 0:00:10]} Ne4 {[%emt 0:01:49]} 22. Nxe4 {[%emt 0:00:06]} dxe4 {[%emt 0:00:02]} 23. Qa7 {[%emt 0:01:54]} Qe7 {[%emt 0:01:12]} 24. Rad1 {[%emt 0:00:19]} Red8 {[%emt 0:00:18]} 25. Rd6 {[%emt 0:00:39]} Qc7 {[%emt 0:01:24]} 26. Rxd8 {[%emt 0:01:55]} Rxd8 {[%emt 0:00:02]} 27. e6 {[%emt 0:00:06]} Qxf4 {[%emt 0:00:01]} 28. exf7+ {[%emt 0:00:21]} Kh8 {[%emt 0:00:02]} 29. Qxb7 {[%emt 0:00:01]} Bc5 {[%emt 0:00:11]} 30. Qxe4 {[%emt 0:00:09]} Qxf2+ {[%emt 0:00:13]} 31. Kh1 {[%emt 0:00:02]} Bf8 {[%emt 0:00:02]} 32. Qe8 {[%emt 0:00:37]} g6 {[%emt 0:00:03]} 33. Qe5+ {[%emt 0:00:04]} Kh7 {[%emt 0:00:03]} 34. Qe2 {[%emt 0:00:02]} Rd2 {[%emt 0:00:07]} 35. Qxf2 {[%emt 0:00:02]} Rxf2 {[%emt 0:00:00]} 36. Re8 {[%emt 0:00:03]} Kg7 {[%emt 0:00:01]} 37. Kg1 {[%emt 0:00:02]} Rxb2 {[%emt 0:00:05]} 38. Ra8 {[%emt 0:00:01]} Bc5+ {[%emt 0:00:10]} 39. Kf1 {[%emt 0:00:01]} Rf2+ {[%emt 0:00:02]} 40. Ke1 {[%emt 0:00:00]} a5 {[%emt 0:00:06]} 41. Rg8+ {[%emt 0:00:06]} Kh7 {[%emt 0:00:01]} 42. Rc8 {[%emt 0:00:01]} 1-0

[Event "CCT Chessable Masters Place D-I 2024"]
[Site "Online"]
[Date "2024.02.01"]
[Round "1"]
[White "Lazavik, Denis"]
[Black "Nakamura, Hikaru"]
[Result "1-0"]
[ECO "A41"]
[WhiteElo "2566"]
[BlackElo "2788"]
[Annotator "TA"]
[PlyCount "71"]
[EventDate "2024.01.12"]
[EventType "k.o."]
[EventCountry "NET"]
[SourceTitle "playchess.com"]
[Source "ChessBase"]
[SourceQuality "1"]
[TimeControl "600+2"]

{[%evp 9,71,23,53,43,44,47,62,55,91,85,101,78,79,58,80,88,91,6,6,10,10,0,0,0,0,0,0,-15,76,73,78,55,128,132,132,140,145,142,284,293,319,309,304,316,315,275,316,318,314,297,281,268,277,181,187,0,242,0,306,317,312,295,846,841]} 1. d4 {[%emt 0:00:03]} g6 {[%emt 0:00:09]} 2. c4 {[%emt 0:00:02]} Bg7 {[%emt 0:00:01]} 3. Nf3 {[%emt 0:00:01]} d6 {[%emt 0:00:19]} 4. Nc3 {[%emt 0:00:02]} Bd7 {[%emt 0:00:04]} 5. g3 {[%emt 0:00:08]} Qc8 {[%emt 0:00:01]} 6. Bg2 {[%emt 0:00:05]} Bh3 {[%emt 0:00:02]} 7. O-O {[%emt 0:00:11]} Nc6 {[%emt 0:00:02]} 8. e4 {[%emt 0:00:26] White is slightly better.} h5 {[%emt 0:00:03]} 9. Bxh3 {[%emt 0:00:07]} Qxh3 {[%emt 0:00:00] [#]} 10. d5 $1 {[%emt 0:00:01]} Nd8 {[%emt 0:00:11][%cal Oh5h4]} 11. Nb5 {[%emt 0:00:29]} Qd7 {[%emt 0:00:03]} 12. Re1 {[%emt 0:00:10]} e5 {[%emt 0:00:28]} 13. dxe6 {[%emt 0:00:38]} ({Better is} 13. Be3 $16) 13... Nxe6 $11 {[%emt 0:00:13]} 14. e5 {[%emt 0:00:16] Dodges Nf6} a6 {[%emt 0:00:08]} 15. Nc3 {[%emt 0:00:22]} O-O-O {[%emt 0:00:06]} 16. exd6 {[%emt 0:00:16]} Qxd6 {[%emt 0:00:09]} 17. Qxd6 {[%emt 0:01:47]} Rxd6 {[%emt 0:00:00]} 18. Ng5 {[%emt 0:00:01]} Nd8 {[%emt 0:00:29]} (18... Bxc3 $11 19. bxc3 Nh6) 19. Nd5 $16 {[%emt 0:00:17][%cal Od5c7]} Nf6 {[%emt 0:01:22]} 20. Bf4 {[%emt 0:00:13] White is much more active.} (20. Nxc7 $5 Kxc7 21. Bf4 $16) 20... Rxd5 {[%emt 0:00:41]} (20... Rd7 $14) 21. cxd5 {[%emt 0:00:06]} Nxd5 {[%emt 0:00:00]} 22. Be5 $36 {[%emt 0:01:22][%mdl 2048] Keeping Black busy.} f6 {[%emt 0:00:29]} 23. Bd4 {[%emt 0:00:02]} c5 {[%emt 0:00:04]} (23... fxg5 $16 24. Bxg7 Rg8) 24. Rac1 $18 {[%emt 0:00:15]} ({Inferior is} 24. Bxc5 fxg5 25. Rad1 Nc7 $17) 24... b6 {[%emt 0:00:04] [#]} 25. Bxc5 $1 {[%emt 0:00:24][%mdl 512]} bxc5 {[%emt 0:00:03]} 26. Rxc5+ {[%emt 0:00:01]} Kb8 {[%emt 0:00:01]} 27. Rxd5 {[%emt 0:00:03]} fxg5 {[%emt 0:00:01]} 28. Rxg5 {[%emt 0:00:05]} Rh6 {[%emt 0:00:03]} 29. Re8 {[%emt 0:00:06] Against Bf6} Bf6 {[%emt 0:00:04]} 30. Rd5 {[%emt 0:00:21]} Kc7 {[%emt 0:00:01] Prevents Rd6} 31. Ra5 {[%emt 0:00:06]} Kb6 {[%emt 0:01:45]} 32. Rd5 {[%emt 0:00:01]} (32. b4 $142) 32... Kc7 $1 {[%emt 0:00:01]} 33. Ra5 $2 {[%emt 0:00:02]} ({White should play} 33. Re4 $18 {aiming for Rc4+.} g5 34. Ra4) 33... Nc6 $2 {[%emt 0:00:10][%mdl 8192]} (33... Kb6 $1 $11 {and Black stays safe.} 34. Rd5 Kc7) 34. Rxa6 {[%emt 0:00:04] And now Re6 would win.} Bd4 {[%emt 0:00:00]} 35. Re6 {[%emt 0:00:17]} Bb6 $2 {[%emt 0:00:01] [#]} (35... Nb4 36. Rad6 (36. Rxg6 Rxg6 37. Rxg6 Nxa2 $16) 36... Bc5) 36. b4 $1 {[%emt 0:00:21][%mdl 512] Weighted Error Value: White=0.33/Black=0.36.  Loses game:     	---       	Black=1      Missed win:     	White=1     	---        Mistake:       	White=2     	Black=4      Inaccurate:     	White=1     	Black=1      OK:         	White=13    	Black=10     Best:        	White=1     	Black=2      Strong:       	White=1     	Black=1      Brilliant:      	White=1     	---} 1-0

[Event "CCT Chessable Masters Place D-I 2024"]
[Site "Online"]
[Date "2024.02.01"]
[Round "2"]
[White "Sibelephant"]
[Black "Firouzja, Alireza"]
[Result "1/2-1/2"]
[ECO "B13"]
[WhiteElo "2796"]
[BlackElo "2759"]
[Annotator "TA"]
[PlyCount "76"]
[EventDate "2024.01.12"]
[EventType "k.o."]
[EventCountry "NET"]
[SourceTitle "playchess.com"]
[Source "ChessBase"]
[SourceQuality "1"]
[TimeControl "600+2"]

{[%evp 11,76,12,32,0,8,23,23,14,25,18,27,17,25,14,18,15,28,26,17,14,37,37,66,46,58,28,23,-18,-12,-10,-9,-12,-19,-13,-14,-13,-14,-19,-14,-11,-13,-16,0,0,0,0,0,0,0,0,0,0,0,0,0,0,0,0,0,0,0,0,0,0,0,0,0]} 1. Nf3 {[%emt 0:00:06]} Nf6 {[%emt 0:00:07]} 2. c4 {[%emt 0:00:06]} c5 {[%emt 0:00:14]} 3. e3 {[%emt 0:00:11]} Nc6 {[%emt 0:00:08]} 4. d4 {[%emt 0:00:02]} cxd4 {[%emt 0:00:02]} 5. exd4 {[%emt 0:00:01]} d5 {[%emt 0:00:02]} 6. Nc3 {[%emt 0:00:10]} a6 {[%emt 0:00:15]} 7. h3 {[%emt 0:00:11]} g6 {[%emt 0:00:24]} 8. c5 {[%emt 0:00:08]} Bg7 {[%emt 0:00:04]} 9. Bd3 {[%emt 0:00:01] Dodges Ne4. White has an edge.} O-O {[%emt 0:00:19]} 10. O-O {[%emt 0:00:03]} Nd7 {[%emt 0:00:07]} 11. Bc2 {[%emt 0:00:17]} e6 {[%emt 0:01:10]} 12. Bg5 {[%emt 0:00:19]} Qc7 {[%emt 0:00:12]} 13. Ba4 {[%emt 0:00:21]} b6 {[%emt 0:00:28]} 14. Bxc6 {[%emt 0:01:25]} Qxc6 {[%emt 0:00:01]} 15. b4 {[%emt 0:00:00][%cal Bb2b4,Bb4c5][%mdl 32]} bxc5 {[%emt 0:00:17]} 16. bxc5 {[%emt 0:00:02]} Bb7 {[%emt 0:01:04]} 17. Rb1 {[%emt 0:01:02]} Rfe8 {[%emt 0:00:37] Black is weak on the dark squares} ({Avoid the trap} 17... Nxc5 $2 18. dxc5 (18. Be7 Ne4 $16) 18... d4 (18... Bxc3 $2 19. Qb3 $18) 19. Na4 $18 (19. Nxd4 $2 Qxg2#)) 18. Qa4 {[%emt 0:00:42][%cal Ob1b7] [#] Threatens to win with Rxb7!} Rac8 {[%emt 0:00:28]} 19. Bf4 {[%emt 0:02:15]} e5 {[%emt 0:00:08] The position is equal.} ({Of course not} 19... Nxc5 $6 20. dxc5 e5 (20... Bxc3 $2 {perishes.} 21. Qb3 $18) 21. Bd2 $16) 20. dxe5 {[%emt 0:00:41]} Nxc5 {[%emt 0:00:17]} 21. Qxc6 {[%emt 0:00:13]} Bxc6 {[%emt 0:00:00]} 22. Rfd1 {[%emt 0:00:04]} Ne6 {[%emt 0:00:37]} 23. Be3 {[%emt 0:00:20] [#]} d4 $1 {[%emt 0:00:09]} 24. Nxd4 {[%emt 0:00:01]} Nxd4 {[%emt 0:00:05]} 25. Bxd4 {[%emt 0:00:01]} Bxe5 {[%emt 0:00:02] This pair of bishops is nice.} 26. Rb6 {[%emt 0:00:10]} Bxd4 {[%emt 0:00:29]} 27. Rxd4 {[%emt 0:00:01]} Bxg2 {[%emt 0:00:02]} 28. Kxg2 {[%emt 0:00:03]} Rxc3 {[%emt 0:00:01]} 29. Rxa6 $11 {[%emt 0:00:00][%mdl 4096] Endgame. KRR-KRR} Re5 {[%emt 0:00:10]} 30. Rf4 {[%emt 0:00:21]} Rg5+ {[%emt 0:00:11]} 31. Kh2 {[%emt 0:00:12]} Rh5 {[%emt 0:00:12]} 32. Ra8+ {[%emt 0:00:01]} Kg7 {[%emt 0:00:02]} 33. Ra7 {[%emt 0:00:02]} Rcxh3+ {[%emt 0:00:22]} 34. Kg2 {[%emt 0:00:02]} Rh2+ {[%emt 0:00:00]} 35. Kg1 {[%emt 0:00:00]} Rh1+ {[%emt 0:00:02]} 36. Kg2 {[%emt 0:00:01]} R1h2+ {[%emt 0:00:04]} 37. Kg1 {[%emt 0:00:04]} Rh1+ {[%emt 0:00:00]} 38. Kg2 {[%emt 0:00:00]} R1h2+ {[%emt 0:00:02] Weighted Error Value: White=0.06 (flawless) /Black=0.05 (flawless) .  Inaccurate:     	White=2     	Black=1      OK:         	White=18    	Black=10     Best:        	---       	Black=2} 1/2-1/2